bitfinex/quotes_SOLUSD_20250924
["timestamp","ask_amount","ask_price","bid_price","bid_amount"]
[1758694058119,2.36613739,209.86,209.81,13.59559401]
[1758694058941,2.36613739,209.85,209.81,13.59559401]
[1758694059122,3.06613739,209.85,209.82,37.22]
[1758694059425,3.06613739,209.84,209.82,37.22]
[1758694060030,3.06613739,209.83,209.77,4.76697121]
[1758694060206,3.06613739,209.83,209.78,50.79559401]
[1758694060207,2.36613739,209.82,209.78,50.79559401]
[1758694060408,3.06613739,209.82,209.78,50.79559401]
[1758694060620,3.06613739,209.82,209.8,13.59559401]
[1758694062026,0.7,209.82,209.8,13.59559401]
[1758694063621,2.36613739,209.83,209.8,13.59559401]
[1758694063823,3.06613739,209.83,209.8,13.59559401]
[1758694064614,0.7,209.82,209.8,13.59559401]
[1758694065439,0.7,209.81,209.75,0.1]
[1758694065625,2.36613739,209.77,209.76,37.16]
[1758694066021,2.36613739,209.77,209.75,0.1]
[1758694066227,3.06613739,209.77,209.76,37.18]
[1758694066741,3.06613739,209.77,209.75,0.1]
[1758694066923,2.36613739,209.76,209.75,0.1]
[1758694067245,29.06613739,209.76,209.75,0.1]
[1758694067457,33.83349055,209.76,209.75,0.1]
[1758694067745,2.36613739,209.75,209.72,37.2]
[1758694067950,28.36613739,209.73,209.71,37.2]
[1758694068255,3.06613739,209.72,209.71,37.2]
[1758694068542,7.83460399,209.72,209.67,13.59559401]
[1758694068736,3.06613739,209.71,209.68,37.2]
[1758694068951,0.7,209.7,209.68,37.2]
[1758694069946,26.0,209.71,209.69,13.59559401]
[1758694070144,26.0,209.7,209.67,13.59559401]
[1758694070647,28.36613739,209.7,209.68,37.2]
[1758694070839,29.05613739,209.7,209.68,37.2]
[1758694071625,28.36613739,209.7,209.68,37.2]
[1758694072022,2.36613739,209.71,209.68,37.2]
[1758694072221,2.36613739,209.72,209.68,37.2]
[1758694072621,0.69,209.71,209.68,37.2]
[1758694073053,0.69,209.7,209.68,37.2]
[1758694073252,3.05613739,209.7,209.68,37.2]
[1758694073430,28.36613739,209.69,209.66,38.66]
[1758694073636,28.36613739,209.69,209.67,37.2]
[1758694073867,3.05613739,209.68,209.65,0.1]
[1758694074030,2.36613739,209.66,209.65,0.1]
[1758694074347,2.36613739,209.66,209.65,37.3]
[1758694074549,3.05613739,209.66,209.65,37.3]
[1758694075139,0.69,209.66,209.65,37.3]
[1758694075342,3.05613739,209.66,209.65,37.3]
[1758694078369,28.36613739,209.66,209.65,37.3]
[1758694078547,29.05613739,209.66,209.65,37.3]
[1758694078864,26.0,209.66,209.65,37.3]
[1758694079434,0.69,209.66,209.65,37.3]
[1758694079629,26.0,209.7,209.65,42.06974238]
[1758694079834,3.05613739,209.69,209.65,42.06974238]
[1758694080039,0.69,209.68,209.65,42.06974238]
[1758694080253,26.0,209.68,209.65,42.06974238]
[1758694080457,11.91687032,209.79,209.66,13.70559401]
[1758694080767,2.36613739,209.72,209.66,13.59559401]
[1758694080935,2.36613739,209.7,209.66,13.59559401]
[1758694081962,28.36613739,209.7,209.66,18.36518141]
[1758694082135,26.0,209.7,209.66,18.36518141]
[1758694083043,26.0,209.7,209.67,37.2]
[1758694084149,26.0,209.7,209.67,41.96930909]
[1758694084458,26.0,209.69,209.68,37.2]
[1758694085142,11.91872826,209.76,209.68,37.2]
[1758694085143,26.0,209.73,209.68,37.2]
[1758694085353,1.51671769,209.71,209.68,37.2]
[1758694085545,0.69,209.83,209.71,13.59559401]
[1758694085745,11.91073768,209.9,209.75,15.1123117]
[1758694085963,0.69,209.84,209.77,13.59559401]
[1758694086138,1.51671769,209.83,209.78,4.76689865]
[1758694086333,0.69,209.83,209.79,37.26]
[1758694086571,1.51671769,209.82,209.79,37.26]
[1758694087073,27.51671769,209.82,209.79,37.26]
[1758694087233,2.20671769,209.83,209.79,37.26]
[1758694087436,1.51671769,209.82,209.79,37.26]
[1758694087662,2.20671769,209.81,209.8,37.26]
[1758694087841,1.51671769,209.81,209.8,37.26]
[1758694088154,1.51671769,209.82,209.8,37.26]
[1758694088332,2.20671769,209.82,209.8,37.26]
[1758694090256,0.69,209.82,209.8,37.26]
[1758694090558,2.20671769,209.82,209.8,37.26]
[1758694092059,2.20671769,209.81,209.73,13.59559401]
[1758694092257,1.51671769,209.79,209.75,18.36301158]
[1758694092564,1.51671769,209.81,209.75,30.39196271]
[1758694093059,26.0,209.81,209.75,31.7986804]
[1758694093262,26.69,209.81,209.75,31.7986804]
[1758694093960,1.51671769,209.8,209.75,18.36301158]
[1758694094139,2.23671769,209.8,209.75,18.36301158]
[1758694094339,0.72,209.8,209.75,18.36301158]
[1758694094540,30.76607019,209.82,209.75,18.36301158]
[1758694094752,26.0,209.8,209.75,18.36301158]
[1758694094952,27.51671769,209.8,209.75,18.47301158]
[1758694096251,26.0,209.8,209.75,18.47301158]
[1758694097165,2.23671769,209.82,209.77,18.3627199]
[1758694097464,0.72,209.81,209.77,18.3627199]
[1758694097661,0.72,209.8,209.77,18.3627199]
[1758694097846,1.51671769,209.82,209.77,18.3627199]
[1758694098047,1.51671769,209.82,209.77,18.4727199]
[1758694098445,2.23671769,209.84,209.77,31.90725233]
[1758694099344,28.23671769,209.84,209.77,31.90725233]
[1758694099560,26.0,209.84,209.77,31.79725233]
[1758694099762,26.0,209.84,209.78,13.59559401]
[1758694099951,1.51671769,209.84,209.8,13.59559401]
[1758694100262,1.51671769,209.83,209.8,13.59559401]
[1758694100462,1.51671769,209.84,209.8,13.59559401]
[1758694100771,0.7,209.83,209.8,13.59559401]
[1758694101151,1.51671769,209.84,209.8,18.36190672]
[1758694101662,26.0,209.84,209.8,18.36190672]
[1758694101853,26.7,209.84,209.8,18.36190672]
[1758694103061,0.7,209.83,209.8,18.36190672]
[1758694103260,27.51671769,209.84,209.8,18.36190672]
[1758694103462,26.7,209.84,209.8,18.36190672]
[1758694103666,0.7,209.84,209.8,18.36190672]
[1758694104067,26.0,209.84,209.8,18.36190672]
[1758694104659,0.7,209.84,209.8,18.36190672]
[1758694104967,2.21671769,209.84,209.8,18.36190672]
[1758694105869,31.46508078,209.87,209.8,18.47190672]
[1758694106172,1.51671769,209.85,209.8,18.47190672]
[1758694106368,2.21671769,209.85,209.8,18.47190672]
[1758694106571,1.51671769,209.83,209.8,13.59559401]
[1758694106956,2.21671769,209.83,209.8,13.59559401]
[1758694107151,26.0,209.84,209.8,13.59559401]
[1758694107354,0.7,209.83,209.8,18.3619282]
[1758694107560,26.0,209.84,209.8,18.3619282]
[1758694107762,0.7,209.83,209.8,18.3619282]
[1758694109054,0.7,209.86,209.8,18.4719282]
[1758694109255,2.21671769,209.86,209.8,18.4719282]
[1758694109456,26.0,209.85,209.8,18.4719282]
[1758694109668,28.21671769,209.85,209.8,18.4719282]
[1758694112905,2.21671769,209.84,209.79,18.36206567]
[1758694113567,0.7,209.84,209.79,18.36206567]
[1758694118107,27.51671769,209.85,209.79,18.36206567]
[1758694118284,0.7,209.83,209.77,18.47251081]
[1758694118489,0.7,209.83,209.8,37.18]
[1758694118795,27.51671769,209.81,209.75,13.59559401]
[1758694118999,0.7,209.8,209.77,13.59559401]
[1758694122190,0.7,209.79,209.77,13.59559401]
[1758694122399,0.7,209.79,209.78,37.18]
[1758694122797,2.21671769,209.81,209.78,37.18]
[1758694122999,1.51671769,209.81,209.78,37.18]
[1758694123187,2.21671769,209.83,209.78,37.18]
[1758694123592,26.0,209.82,209.78,37.18]
[1758694123795,27.51671769,209.84,209.78,37.29]
[1758694123989,26.0,209.83,209.79,13.59559401]
[1758694124186,26.0,209.83,209.79,13.70559401]
[1758694124387,26.0,209.83,209.8,4.76644423]
[1758694124706,26.0,209.83,209.81,37.18]
[1758694128390,4.01068749,209.94,209.82,4.76598989]
[1758694128587,0.7,209.86,209.82,4.76598989]
[1758694128987,0.7,209.85,209.82,4.76598989]
[1758694129304,1.90983118,209.85,209.82,4.76598989]
[1758694129506,1.90983118,209.84,209.83,37.18]
[1758694129684,0.7,209.84,209.83,37.18]
[1758694130503,1.90983118,209.84,209.83,37.18]
[1758694130697,1.90983118,209.84,209.78,18.36228303]
[1758694130902,1.92983118,209.83,209.8,13.59559401]
[1758694131092,0.72,209.82,209.8,13.59559401]
[1758694131403,1.20983118,209.83,209.8,13.59559401]
[1758694131603,0.72,209.84,209.8,13.59559401]
[1758694131803,1.93162886,209.83,209.8,13.59559401]
[1758694132003,0.72,209.83,209.8,13.59559401]
[1758694132507,1.93162881,209.83,209.8,18.36183229]
[1758694133294,1.21162881,209.83,209.81,0.11]
[1758694133610,26.0,209.84,209.82,37.16]
[1758694133807,1.21158867,209.83,209.82,37.16]
[1758694134324,1.93158867,209.83,209.8,18.36183229]
[1758694134485,1.93158867,209.82,209.81,37.16]
[1758694135111,0.72,209.82,209.81,37.16]
[1758694135410,1.21158867,209.82,209.81,37.16]
[1758694135616,0.72,209.82,209.81,37.16]
[1758694135786,1.93158867,209.82,209.81,37.16]
[1758694136188,0.72,209.82,209.81,37.16]
[1758694136506,1.93158867,209.82,209.81,37.16]
[1758694137004,0.72,209.82,209.81,37.16]
[1758694137190,1.93158867,209.82,209.81,37.16]
[1758694137699,1.9317653,209.82,209.81,37.16]
[1758694138504,1.2117653,209.82,209.81,37.16]
[1758694138915,26.0,209.84,209.81,37.16]
[1758694139215,1.2118121,209.83,209.81,41.92620912]
[1758694139409,26.0,209.84,209.81,41.92620912]
[1758694139711,1.21190337,209.83,209.81,41.92620912]
[1758694139907,1.21189322,209.82,209.81,41.92620912]
[1758694140083,1.21189322,209.83,209.81,55.52180313]
[1758694140284,1.21189322,209.82,209.81,50.75559401]
[1758694140504,1.21189322,209.82,209.81,37.16]
[1758694140819,1.93189322,209.82,209.81,37.16]
[1758694140996,0.72,209.82,209.81,37.16]
[1758694141199,1.93189322,209.82,209.81,37.16]
[1758694141398,1.21189322,209.83,209.81,37.16]
[1758694141595,0.72,209.91,209.81,57.03852875]
[1758694141796,0.72,209.91,209.84,13.59559401]
[1758694141797,1.21215531,209.9,209.84,13.59559401]
[1758694142096,1.21215531,209.89,209.85,37.16]
[1758694142295,1.21215531,209.88,209.85,37.16]
[1758694142614,1.21215531,209.87,209.85,37.16]
[1758694142790,0.72,209.89,209.85,41.92518886]
[1758694142993,1.21179316,209.88,209.85,41.92518886]
[1758694143193,1.21179316,209.87,209.85,41.92518886]
[1758694143395,0.72,209.89,209.85,41.92518886]
[1758694143596,27.93149059,209.88,209.84,13.59559401]
[1758694143814,1.21149059,209.87,209.85,37.16]
[1758694146092,26.0,209.88,209.85,37.16]
[1758694146295,26.0,209.88,209.85,41.92529792]
[1758694146700,26.72,209.88,209.85,41.92529792]
[1758694146917,0.72,209.88,209.85,41.92529792]
[1758694147129,0.72,209.88,209.84,13.59559401]
[1758694147431,2.36567709,209.85,209.79,13.59559401]
[1758694147591,0.72,209.84,209.78,13.59559401]
[1758694147794,0.72,209.84,209.79,37.16]
[1758694148103,26.0,209.84,209.81,13.59559401]
[1758694148303,3.08567709,209.83,209.79,13.59559401]
[1758694148506,26.72,209.82,209.8,37.16]
[1758694150302,26.0,209.82,209.8,37.16]
[1758694150519,26.72,209.82,209.8,37.16]
[1758694150716,26.0,209.82,209.8,37.16]
[1758694151308,26.72,209.82,209.8,37.16]
[1758694152730,26.0,209.87,209.81,13.70559401]
[1758694152930,1.21048922,209.86,209.82,37.16]
[1758694153108,26.0,209.87,209.82,37.16]
[1758694153427,1.21047806,209.86,209.82,37.16]
[1758694154133,26.0,209.85,209.82,41.92580058]
[1758694155130,26.68,209.85,209.82,41.92580058]
[1758694157016,26.0,209.85,209.82,41.92580058]
[1758694157209,26.68,209.85,209.82,41.92580058]
[1758694159533,0.68,209.85,209.82,41.92580058]
[1758694160330,0.68,209.84,209.83,37.16]
[1758694160920,0.68,209.84,209.77,11.91751578]
[1758694161115,0.7,209.83,209.78,53.1212711]
[1758694161313,0.7,209.83,209.78,57.88816975]
[1758694162129,0.7,209.83,209.78,57.99816975]
[1758694162924,0.7,209.82,209.76,2.36567709]
[1758694163126,0.7,209.81,209.77,50.75559401]
[1758694165129,26.7,209.81,209.78,41.92689865]
[1758694166035,4.01577104,209.93,209.79,13.70559401]
[1758694166249,0.7,209.92,209.87,13.59559401]
[1758694166416,0.7,209.92,209.88,37.16]
[1758694166614,1.91061324,209.92,209.88,37.16]
[1758694166816,0.7,209.92,209.88,37.16]
[1758694167032,1.91063573,209.94,209.89,13.59559401]
[1758694167224,1.21063573,209.93,209.9,37.16]
[1758694167426,0.7,209.95,209.91,13.59559401]
[1758694167626,1.21043014,209.99,209.95,13.59559401]
[1758694167832,1.21043014,209.99,209.96,39.52567709]
[1758694168240,30.0,210.0,209.96,39.52567709]
[1758694168550,30.7,210.0,209.96,39.52567709]
[1758694168837,4.7,210.0,209.96,39.52567709]
[1758694169216,30.7,210.0,209.96,39.52567709]
[1758694169417,30.7,210.0,209.91,11.90931161]
[1758694169418,4.27399439,209.99,209.91,13.59559401]
[1758694169743,1.90829679,209.98,209.93,13.59559401]
[1758694170117,0.7,209.97,209.94,37.18]
[1758694170315,0.7,209.96,209.94,37.18]
[1758694170843,5.4623056,209.99,209.94,37.18]
[1758694171216,0.7,209.99,209.95,13.59559401]
[1758694173214,26.0,209.98,209.95,18.35859301]
[1758694173622,26.0,209.98,209.95,18.46859301]
[1758694174435,26.0,209.99,209.95,18.35859301]
[1758694175535,26.0,209.99,209.96,37.18]
[1758694176138,26.0,209.99,209.96,41.94280615]
[1758694176445,26.0,209.99,209.96,37.18]
[1758694176656,26.7,209.98,209.97,37.16]
[1758694176947,26.0,209.98,209.97,37.16]
[1758694177346,4.7,210.0,209.97,37.16]
[1758694177744,4.0,210.0,209.97,37.16]
[1758694177968,4.0,210.0,209.98,13.59559401]
[1758694178171,4.0,210.0,209.98,18.35787969]
[1758694179258,4.0,210.0,209.99,0.11]
[1758694180177,4.0,210.0,209.99,18.35772554]
[1758694180381,4.0,210.0,209.99,20.72340263]
[1758694180584,4.0,210.0,209.99,18.35772554]
[1758694180783,4.0,210.0,209.99,50.73559401]
[1758694181464,4.0,210.0,209.99,13.59559401]
[1758694181664,4.0,210.0,209.99,50.73559401]
[1758694182179,4.0,210.0,209.99,13.59559401]
[1758694182382,4.0,210.0,209.99,50.73559401]
[1758694184357,4.0,210.0,209.99,55.49772554]
[1758694190483,4.0,210.0,209.99,50.73559401]
[1758694193760,4.72,210.0,209.99,13.59559401]
[1758694193961,4.0,210.0,209.99,50.71559401]
[1758694196367,4.0,210.0,209.99,55.47772554]
[1758694197397,4.0,210.0,209.99,18.35772554]
[1758694197689,4.0,210.0,209.89,34.33]
[1758694197690,35.48190476,210.0,209.9,2.36567709]
[1758694197979,0.72,209.99,209.93,13.59559401]
[1758694198166,0.72,209.99,209.95,13.59559401]
[1758694198360,0.72,209.99,209.96,37.16]
[1758694198567,0.72,209.98,209.96,37.16]
[1758694198774,4.0,210.0,209.97,13.59559401]
[1758694199097,4.0,210.0,209.99,13.59559401]
[1758694200165,4.0,210.0,209.99,18.35772554]
[1758694200367,4.0,210.0,209.99,20.72340263]
[1758694200571,4.0,210.0,209.99,20.83340263]
[1758694201305,4.0,210.0,209.99,20.72340263]
[1758694201511,4.0,210.0,209.99,57.88340263]
[1758694201807,4.0,210.0,209.99,18.35772554]
[1758694202109,4.0,210.0,209.99,50.75559401]
[1758694202312,4.0,210.0,209.99,55.51772554]
[1758694203814,4.0,210.0,209.99,57.88340263]
[1758694203999,4.0,210.0,209.99,57.99340263]
[1758694206588,4.0,210.0,209.99,57.1386235]
[1758694207093,1e-08,210.0,209.99,57.61483665]
[1758694210407,1e-08,210.03,210.02,39.59559401]
[1758694210603,1e-08,210.03,210.02,78.38649197]
[1758694210911,1e-08,210.04,210.03,13.59559401]
[1758694211125,1e-08,210.04,210.03,15.21649197]
[1758694211427,1e-08,210.04,210.03,19.97771655]
[1758694213699,1e-08,210.04,210.03,18.35681859]
[1758694214011,0.66000001,210.04,210.03,57.18771655]
[1758694214211,0.66000001,210.04,209.98,26.50953236]
[1758694214391,0.66,210.03,210.01,13.59559401]
[1758694214593,1e-08,210.04,210.02,38.83089796]
[1758694215108,1e-08,210.04,210.03,13.59559401]
[1758694215698,0.66000001,210.04,210.03,13.59559401]
[1758694216095,0.66000001,210.04,210.0,1.51089796]
[1758694216404,0.66,210.03,210.01,37.32]
[1758694216619,1.51089797,210.04,210.02,37.32]
[1758694216915,1.51089796,210.03,209.97,13.59559401]
[1758694217093,0.66,210.02,209.99,13.59559401]
[1758694217288,0.66,210.01,209.99,13.59559401]
[1758694217490,0.66,210.0,209.97,1.51089796]
[1758694217718,1.51089797,210.04,209.99,13.59559401]
[1758694217888,1.51089797,210.04,210.0,37.32]
[1758694218092,0.66,210.03,210.0,37.32]
[1758694218321,0.66,210.02,210.0,37.32]
[1758694218523,0.66,210.01,210.0,37.32]
[1758694218726,2.17089796,210.01,210.0,37.32]
[1758694219029,0.66,210.01,210.0,37.32]
[1758694220023,0.66,210.01,210.0,37.3]
[1758694221520,0.66,210.01,210.0,42.06190476]
[1758694224332,0.66,210.01,210.0,37.3]
[1758694231227,0.67000001,210.04,210.01,13.59559401]
[1758694231405,0.67,210.03,210.02,37.22]
[1758694233827,0.67,210.03,210.02,41.98145129]
[1758694234736,26.00000001,210.04,210.02,41.98145129]
[1758694235238,0.67,210.03,210.02,41.98145129]
[1758694236426,0.67,210.03,210.02,37.22]
[1758694236625,0.67,210.03,210.01,13.59559401]
[1758694236831,0.67,210.02,209.97,13.59559401]
[1758694237013,0.67,210.01,209.99,13.59559401]
[1758694237212,1.51089797,210.04,210.0,37.16]
[1758694237817,5.43124728,210.03,210.0,37.16]
[1758694238013,0.67,210.02,210.0,37.16]
[1758694238333,0.67,210.01,210.0,37.16]
[1758694241943,0.67000001,210.04,210.0,41.92190476]
[1758694242118,0.67,210.03,210.0,41.92190476]
[1758694242632,1e-08,210.04,210.0,41.92190476]
[1758694242820,1e-08,210.04,210.01,13.59559401]
[1758694243019,0.67000001,210.04,210.02,41.9013853]
[1758694243923,0.67,210.03,210.0,13.59559401]
[1758694244138,0.67,210.02,210.01,37.14]
[1758694245952,1e-08,210.04,210.01,37.14]
[1758694246122,0.67,210.03,210.01,37.14]
[1758694246316,0.67,210.03,210.01,41.90167801]
[1758694247135,0.67,210.03,210.01,37.14]
[1758694248726,0.67,210.03,210.01,41.90166932]
[1758694249835,0.67,210.02,210.01,41.90166932]
[1758694250551,0.66000001,210.04,210.01,41.90166932]
[1758694250925,0.66,210.03,210.01,41.90166932]
[1758694252252,0.66,210.02,210.01,37.14]
[1758694254953,0.66,210.02,209.98,4.7623409]
[1758694255161,0.66,210.01,209.99,37.14]
[1758694255463,0.66,210.0,209.99,50.73559401]
[1758694255639,30.76133918,210.03,209.99,50.73559401]
[1758694255840,0.66,210.02,209.99,50.73559401]
[1758694256062,0.66,210.01,209.99,50.73559401]
[1758694257138,0.66,210.01,209.99,55.49770973]
[1758694257751,26.66,210.03,209.99,55.49770973]
[1758694257955,1e-08,210.04,209.99,55.60770973]
[1758694258157,0.66000001,210.04,209.99,55.60770973]
[1758694258358,0.66000001,210.04,210.0,13.59559401]
[1758694258668,1e-08,210.04,210.02,13.59559401]
[1758694258858,1e-08,210.04,210.03,37.14]
[1758694259348,1e-08,210.04,210.03,50.73559401]
[1758694260446,0.66000001,210.04,210.03,55.49681859]
[1758694260645,0.66000001,210.04,210.03,37.14]
[1758694261764,1e-08,210.04,210.03,37.14]
[1758694262168,0.66000001,210.04,210.03,37.14]
[1758694267451,0.66000001,210.04,210.03,37.12]
[1758694268772,5.42103143,210.04,210.03,37.12]
[1758694269174,0.66000001,210.04,210.03,37.12]
[1758694269676,5.42099791,210.04,210.03,37.12]
[1758694269862,0.66000001,210.04,210.03,37.12]
[1758694270064,1e-08,210.04,210.03,37.12]
[1758694270377,0.66000001,210.04,210.03,37.12]
[1758694270758,1e-08,210.04,210.03,37.12]
[1758694270970,0.09,210.06,210.04,13.59559401]
[1758694271174,0.09,210.06,210.05,53.07774901]
[1758694271348,1e-08,210.06,210.05,53.07774901]
[1758694272478,1e-08,210.06,210.05,67.38628882]
[1758694273180,1e-08,210.06,210.05,72.14706006]
[1758694274056,0.66,210.15,210.06,13.59559401]
[1758694274256,0.66,210.15,210.08,15.95774901]
[1758694274470,1e-08,210.09,210.08,13.59559401]
[1758694274780,1e-08,210.09,210.08,15.95774901]
[1758694275365,1e-08,210.09,210.08,20.7178404]
[1758694276663,1e-08,210.09,210.08,23.0799954]
[1758694277463,1e-08,210.09,210.08,49.0799954]
[1758694277883,1e-08,210.09,210.08,50.98770972]
[1758694278384,0.2,210.2,210.08,86.68839516]
[1758694278566,0.7,210.19,210.1,13.59559401]
[1758694278765,0.7,210.19,210.12,13.59559401]
[1758694279068,0.2,210.2,210.14,13.59559401]
[1758694279069,0.7,210.18,210.14,13.59559401]
[1758694279267,0.7,210.17,210.16,13.59559401]
[1758694279467,0.7,210.17,210.16,50.71559401]
[1758694279775,0.7,210.17,210.16,57.83602841]
[1758694280461,0.2,210.2,210.16,57.83602841]
[1758694280663,0.65,210.19,210.17,13.59559401]
[1758694280867,0.65,210.19,210.18,50.71559401]
[1758694281360,0.2,210.2,210.19,13.59559401]
[1758694281574,0.85,210.2,210.19,13.59559401]
[1758694281779,0.2,210.2,210.19,20.71534927]
[1758694286291,0.85,210.2,210.19,57.81534927]
[1758694286891,0.2,210.2,210.19,57.81534927]
[1758694290292,0.85,210.2,210.19,57.81534927]
[1758694290497,0.2,210.2,210.19,57.81534927]
[1758694293802,0.2,210.21,210.19,57.81534927]
[1758694294301,0.65,210.2,210.19,13.59559401]
[1758694294499,0.65,210.2,210.19,53.05774901]
[1758694294878,0.65,210.2,210.19,50.69559401]
[1758694295980,5.40744176,210.2,210.13,13.59559401]
[1758694296201,0.65,210.19,210.15,13.59559401]
[1758694296501,0.65,210.18,210.16,37.22]
[1758694296700,0.65,210.17,210.16,37.22]
[1758694296892,0.65,210.17,210.16,50.81559401]
[1758694311516,0.65,210.17,210.16,55.57387341]
[1758694311707,0.67,210.18,210.17,13.59559401]
[1758694312007,0.67,210.18,210.17,50.69559401]
[1758694312912,0.2,210.21,210.17,57.81580201]
[1758694313120,0.2,210.21,210.2,13.59559401]
[1758694313309,0.2,210.21,210.2,50.69559401]
[1758694314098,0.2,210.21,210.2,54.21746395]
[1758694314497,0.2,210.21,210.2,55.45296793]
[1758694319510,0.2,210.21,210.2,57.81512293]
[1758694328528,0.2,210.21,210.2,13.59559401]
[1758694328529,0.87,210.21,210.2,13.59559401]
[1758694328714,0.87,210.21,210.2,37.1]
[1758694329503,0.87,210.21,210.2,52.2041877]
[1758694335337,0.87,210.21,210.2,56.96156162]
[1758694335933,0.87,210.21,210.2,52.2041877]
[1758694336128,0.87,210.21,210.2,13.59559401]
[1758694336327,5.62719413,210.21,210.11,4.75941173]
[1758694336543,0.71,210.2,210.14,13.59559401]
[1758694336839,0.71,210.19,210.15,37.08]
[1758694337217,0.71,210.18,210.15,37.08]
[1758694337431,0.71,210.17,210.15,37.08]
[1758694337640,0.71,210.16,210.15,50.67559401]
[1758694341440,26.2,210.21,210.15,50.67559401]
[1758694341441,0.66,210.18,210.16,13.59559401]
[1758694341644,0.66,210.18,210.17,50.67559401]
[1758694341847,26.2,210.21,210.17,50.67559401]
[1758694342529,0.66,210.2,210.17,50.67559401]
[1758694342853,0.66,210.19,210.17,50.67559401]
[1758694343016,0.66,210.18,210.17,50.67559401]
[1758694343837,0.66,210.18,210.17,37.08]
[1758694344951,0.66,210.18,210.16,13.59559401]
[1758694345160,30.95727021,210.21,210.17,37.08]
[1758694345723,0.66,210.2,210.17,37.08]
[1758694345950,0.66,210.19,210.17,37.08]
[1758694346251,0.66,210.18,210.17,37.08]
[1758694347350,0.66,210.18,185.49,14.70703216]
[1758694347351,0.66,210.18,210.1,14.38517887]
[1758694347526,0.66,210.17,210.14,13.59559401]
[1758694347727,0.66,210.16,210.15,50.67559401]
[1758694348453,0.66,210.16,210.15,37.08]
[1758694350017,4.75760026,210.19,210.15,37.08]
[1758694350224,26.66,210.18,210.15,37.08]
[1758694350523,0.66,210.17,210.15,37.08]
[1758694350729,0.66,210.16,210.15,37.08]
[1758694352658,0.66,210.18,210.15,41.83849126]
[1758694353023,26.0,210.19,210.15,41.83849126]
[1758694353250,0.66,210.18,210.15,41.83849126]
[1758694353737,0.66,210.17,210.15,41.83849126]
[1758694355531,0.66,210.17,210.15,37.08]
[1758694355744,0.66,210.16,210.15,50.67559401]
[1758694356349,0.66,210.16,210.15,37.08]
[1758694357923,4.7578468,210.18,210.12,13.59559401]
[1758694358124,0.66,210.17,210.13,37.08]
[1758694358333,0.66,210.16,210.13,37.08]
[1758694358558,0.66,210.15,210.14,37.08]
[1758694371247,0.67,210.16,210.14,37.08]
[1758694371931,1.50859369,210.2,210.14,37.08]
[1758694372133,26.0,210.18,210.14,37.08]
[1758694372372,0.67,210.17,210.14,37.08]
[1758694372547,0.67,210.16,210.14,37.08]
[1758694373376,26.67,210.18,210.14,41.83866158]
[1758694373557,26.0,210.18,210.14,41.83866158]
[1758694373746,0.67,210.17,210.14,41.83866158]
[1758694375457,0.67,210.16,210.14,37.08]
[1758694375771,26.0,210.18,210.15,37.08]
[1758694376249,0.67,210.17,210.15,37.08]
[1758694376751,0.67,210.16,210.15,37.08]
[1758694380175,16.65160092,210.19,210.15,37.08]
[1758694380487,16.65160092,210.19,210.11,2.48758025]
[1758694380488,0.67,210.16,210.11,2.48758025]
[1758694380685,0.67,210.15,210.12,37.06]
[1758694380987,26.67,210.16,210.12,37.06]
[1758694381684,0.67,210.15,210.12,37.06]
[1758694381980,0.67,210.15,210.12,41.81918522]
[1758694382358,0.67,210.16,210.12,41.81918522]
[1758694382557,0.67,210.16,210.12,43.32777891]
[1758694383559,26.67,210.18,210.13,13.59559401]